fUSD/lending_fUSD_20240607
["ID","MTS","AMOUNT","RATE_DAILY","PERIOD"]
[328730338,1717735880292,-500.0,0.00029863,4]
[328730339,1717735880301,-500.0,0.00029863,4]
[328730340,1717735880310,-500.0,0.00029863,4]
[328730341,1717735880319,-500.0,0.00029863,4]
[328730342,1717735880328,-500.0,0.00029863,4]
[328730343,1717735880337,-500.0,0.00029863,4]
[328730344,1717735880346,-500.0,0.00029863,4]
[328730345,1717735880356,-500.0,0.00029863,4]
[328730346,1717735880365,-500.0,0.00029863,4]
[328730347,1717735880374,-500.0,0.00029863,4]
[328730348,1717735880383,-222.72586057,0.00029863,4]
[328730349,1717735880393,-566.54287586,0.00029863,4]
[328730350,1717735880402,-500.0,0.00029863,4]
[328730351,1717735880411,-500.0,0.00029863,4]
[328730352,1717735880421,-500.0,0.00029863,4]
[328730353,1717735880430,-500.0,0.00029863,4]
[328730354,1717735880439,-500.0,0.00029863,4]
[328730355,1717735880449,-500.0,0.00029863,4]
[328730356,1717735880459,-516.08404747,0.00029863,4]
[328730357,1717735880468,-500.0,0.00029863,4]
[328730358,1717735880477,-500.0,0.00029863,4]
[328730359,1717735880486,-500.0,0.00029863,4]
[328730360,1717735880495,-500.0,0.00029863,4]
[328730361,1717735880505,-500.0,0.00029863,4]
[328730362,1717735880514,-500.0,0.00029863,4]
[328730363,1717735880524,-500.0,0.00029863,4]
[328730364,1717735880533,-500.0,0.00029863,4]
[328730365,1717735880542,-500.0,0.00029863,4]
[328730366,1717735880552,-500.0,0.00029863,4]
[328730367,1717735880561,-500.0,0.00029863,4]
[328730368,1717735880570,-500.0,0.00029863,4]
[328730369,1717735880580,-500.0,0.00029863,4]
[328730370,1717735880589,-500.0,0.00029863,4]
[328730371,1717735880599,-500.0,0.00029863,4]
[328730372,1717735880608,-500.0,0.00029863,4]
[328730373,1717735880617,-253.86701729,0.00029863,4]
[328730374,1717735880626,-500.0,0.00029863,4]
[328730375,1717735880635,-500.0,0.00029863,4]
[328730376,1717735880645,-320.81536096,0.00029863,4]
[328730377,1717735880656,-500.0,0.00029863,4]
[328730378,1717735880668,-500.0,0.00029863,4]
[328730379,1717735880677,-500.0,0.00029863,4]
[328730380,1717735880686,-500.0,0.00029863,4]
[328730381,1717735880695,-500.0,0.00029863,4]
[328730382,1717735880705,-524.20848016,0.00029863,4]
[328730383,1717735880715,-500.0,0.00029863,4]
[328730384,1717735880724,-500.0,0.00029863,4]
[328730385,1717735880735,-500.0,0.00029863,4]
[328730386,1717735880744,-500.0,0.00029863,4]
[328730387,1717735880753,-500.0,0.00029863,4]
[328730388,1717735880763,-500.0,0.00029863,4]
[328730389,1717735880773,-500.0,0.00029863,4]
[328730390,1717735880782,-500.0,0.00029863,4]
[328730391,1717735880791,-310.70592632,0.00029863,4]
[328730392,1717735880800,-500.0,0.00029863,4]
[328730393,1717735880809,-500.0,0.00029863,4]
[328730394,1717735880818,-500.0,0.00029863,4]
[328730395,1717735880828,-500.0,0.00029863,4]
[328730396,1717735880837,-500.0,0.00029863,4]
[328730397,1717735880846,-500.0,0.00029863,4]
[328730398,1717735880855,-500.0,0.00029863,4]
[328730399,1717735880864,-500.0,0.00029863,4]
[328730400,1717735880874,-545.74,0.00029863,4]
[328730401,1717735880883,-500.0,0.00029863,4]
[328730402,1717735880894,-545.74,0.00029863,4]
[328730403,1717735880903,-500.0,0.00029863,4]
[328730404,1717735880912,-500.0,0.00029863,4]
[328730405,1717735880921,-545.74,0.00029863,4]
[328730406,1717735880930,-500.0,0.00029863,4]
[328730407,1717735880939,-500.0,0.00029863,4]
[328730408,1717735880948,-545.74,0.00029863,4]
[328730409,1717735880957,-525.03863559,0.00029863,4]
[328730410,1717735880966,-500.0,0.00029863,4]
[328730411,1717735880976,-545.74,0.00029863,4]
[328730412,1717735880985,-500.0,0.00029863,4]
[328730413,1717735880993,-545.74,0.00029863,4]
[328730414,1717735881004,-500.0,0.00029863,4]
[328730415,1717735881014,-545.74,0.00029863,4]
[328730416,1717735881023,-515.17849614,0.00029863,4]
[328730417,1717735881032,-500.0,0.00029863,4]
[328730418,1717735881041,-545.74,0.00029863,4]
[328730419,1717735881051,-156.47603293,0.00029863,4]
[328730420,1717735881060,-545.74,0.00029863,4]
[328730421,1717735881069,-545.74,0.00029863,4]
[328730422,1717735881079,-545.74,0.00029863,4]
[328730423,1717735881088,-545.74,0.00029863,4]
[328730424,1717735881098,-545.74,0.00029863,4]
[328730425,1717735881108,-500.0,0.00029863,4]
[328730426,1717735881118,-545.74,0.00029863,4]
[328730427,1717735881128,-500.0,0.00029863,4]
[328730428,1717735881137,-545.74,0.00029863,4]
[328730429,1717735881147,-500.0,0.00029863,4]
[328730430,1717735881156,-545.74,0.00029863,4]
[328730431,1717735881166,-500.0,0.00029863,4]
[328730432,1717735881175,-500.0,0.00029863,4]
[328730433,1717735881185,-500.0,0.00029863,4]
[328730434,1717735881194,-545.74,0.00029863,4]
[328730435,1717735881204,-500.0,0.00029863,4]
[328730436,1717735881213,-500.0,0.00029863,4]
[328730437,1717735881222,-545.74,0.00029863,4]
[328730438,1717735881232,-500.0,0.00029863,4]
[328730439,1717735881241,-180.20352916,0.00029863,4]
[328730440,1717735881251,-545.74,0.00029863,4]
[328730441,1717735881261,-500.0,0.00029863,4]
[328730442,1717735881270,-500.0,0.00029863,4]
[328730443,1717735881279,-545.74,0.00029863,4]
[328730444,1717735881288,-516.02289216,0.00029863,4]
[328730445,1717735881297,-500.0,0.00029863,4]
[328730446,1717735881307,-500.0,0.00029863,4]
[328730447,1717735881317,-545.74,0.00029863,4]
[328730448,1717735881326,-500.0,0.00029863,4]
[328730449,1717735881336,-545.74,0.00029863,4]
[328730450,1717735881345,-500.0,0.00029863,4]
[328730451,1717735881355,-500.0,0.00029863,4]
[328730452,1717735881364,-500.0,0.00029863,4]
[328730453,1717735881374,-500.0,0.00029863,4]
[328730454,1717735881383,-545.74,0.00029863,4]
[328730455,1717735881393,-517.12214825,0.00029863,4]
[328730456,1717735881403,-521.98890916,0.00029863,4]
[328730457,1717735881413,-500.0,0.00029863,4]
[328730458,1717735881422,-500.0,0.00029863,4]
[328730459,1717735881432,-545.86,0.00029863,4]
[328730460,1717735881442,-500.0,0.00029863,4]
[328730461,1717735881453,-500.0,0.00029863,4]
[328730462,1717735881464,-500.0,0.00029863,4]
[328730463,1717735881476,-500.0,0.00029863,4]
[328730464,1717735881485,-500.0,0.00029863,4]
[328730465,1717735881495,-500.0,0.00029863,4]
[328730466,1717735881504,-500.0,0.00029863,4]
[328730467,1717735881514,-500.0,0.00029863,4]
[328730468,1717735881524,-511.86360155,0.00029863,4]
[328730469,1717735881534,-500.0,0.00029863,4]
[328730470,1717735881667,-500.0,0.00029863,4]
[328730471,1717735881702,-500.0,0.00029863,4]
[328730472,1717735881712,-500.0,0.00029863,4]
[328730473,1717735881724,-500.0,0.00029863,4]
[328730474,1717735881736,-500.0,0.00029863,4]
[328730475,1717735881748,-500.0,0.00029863,4]
[328730476,1717735881758,-500.0,0.00029863,4]
[328730477,1717735881767,-500.0,0.00029863,4]
[328730478,1717735881776,-500.0,0.00029863,4]
[328730479,1717735881786,-500.0,0.00029863,4]
[328730480,1717735881797,-500.0,0.00029863,4]
[328730481,1717735881807,-500.0,0.00029863,4]
[328730482,1717735881816,-500.0,0.00029863,4]
[328730483,1717735881826,-500.0,0.00029863,4]
[328730484,1717735881835,-500.0,0.00029863,4]
[328730485,1717735881844,-500.0,0.00029863,4]
[328730486,1717735881853,-500.0,0.00029863,4]
[328730487,1717735881863,-500.0,0.00029863,4]
[328730488,1717735881872,-500.0,0.00029863,4]
[328730489,1717735881881,-500.0,0.00029863,4]
[328730490,1717735881891,-500.0,0.00029863,4]
[328730491,1717735881900,-500.0,0.00029863,4]
[328730492,1717735881910,-360.95062047,0.00029863,4]
[328730493,1717735881919,-500.0,0.00029863,4]
[328730494,1717735881929,-500.0,0.00029863,4]
[328730495,1717735881938,-500.0,0.00029863,4]
[328730496,1717735881947,-500.0,0.00029863,4]
[328730497,1717735881957,-500.0,0.00029863,4]
[328730498,1717735881966,-500.0,0.00029863,4]
[328730499,1717735881977,-500.0,0.00029863,4]
[328730500,1717735881987,-500.0,0.00029863,4]
[328730501,1717735881999,-500.0,0.00029863,4]
[328730502,1717735882010,-512.53298323,0.00029863,4]
[328730503,1717735882019,-500.0,0.00029863,4]
[328730504,1717735882028,-500.0,0.00029863,4]
[328730505,1717735882037,-500.0,0.00029863,4]
[328730506,1717735882048,-500.0,0.00029863,4]
[328730507,1717735882060,-500.0,0.00029863,4]
[328730508,1717735882070,-500.0,0.00029863,4]
[328730509,1717735882081,-500.0,0.00029863,4]
[328730510,1717735882091,-500.0,0.00029863,4]
[328730511,1717735882102,-536.55070361,0.00029863,4]
[328730512,1717735882111,-500.0,0.00029863,4]
[328730513,1717735882120,-500.0,0.00029863,4]
[328730514,1717735882129,-151.0,0.00029863,7]
[328730515,1717735882138,-500.0,0.00029863,4]
[328730516,1717735882148,-500.0,0.00029863,4]
[328730517,1717735882157,-151.0,0.00029863,7]
[328730518,1717735882166,-500.0,0.00029863,4]
[328730519,1717735882175,-500.0,0.00029863,4]
[328730520,1717735882185,-500.0,0.00029863,4]
[328730521,1717735882194,-500.0,0.00029863,4]
[328730522,1717735882203,-527.78261768,0.00029863,4]
[328730523,1717735882213,-575.95319626,0.00029863,4]
[328730524,1717735882222,-151.0,0.00029863,7]
[328730525,1717735882231,-500.0,0.00029863,4]
[328730526,1717735882240,-500.0,0.00029863,4]
[328730527,1717735882250,-500.0,0.00029863,4]
[328730528,1717735882260,-500.0,0.00029863,4]
[328730529,1717735882270,-151.0,0.00029863,7]
[328730530,1717735882279,-500.0,0.00029863,4]
[328730531,1717735882289,-537.23547748,0.00029863,4]
[328730532,1717735882298,-500.0,0.00029863,4]
[328730533,1717735882308,-500.0,0.00029863,4]
[328730534,1717735882317,-500.0,0.00029863,4]
[328730535,1717735882328,-151.0,0.00029863,7]
[328730536,1717735882337,-500.0,0.00029863,4]
[328730537,1717735882347,-500.0,0.00029863,4]
[328730538,1717735882357,-500.0,0.00029863,4]
[328730539,1717735882366,-500.0,0.00029863,4]
[328730540,1717735882376,-199.150773,0.00029863,7]
[328730541,1717735882385,-500.0,0.00029863,4]
[328730542,1717735882395,-500.0,0.00029863,4]
[328730543,1717735882405,-500.0,0.00029863,4]
[328730544,1717735882415,-500.0,0.00029863,4]
[328730545,1717735882424,-500.0,0.00029863,4]
[328730546,1717735882434,-500.0,0.00029863,4]
[328730547,1717735882444,-500.0,0.00029863,4]
[328730548,1717735882453,-500.0,0.00029863,4]
[328730549,1717735882463,-1353.23,0.00029863,4]
[328730550,1717735882472,-500.0,0.00029863,4]
[328730551,1717735882481,-431.30674149,0.00029863,4]
[328730552,1717735882491,-500.0,0.00029863,4]
[328730553,1717735882501,-500.0,0.00029863,4]
[328730554,1717735882512,-501.88903602,0.00029863,4]
[328730555,1717735882521,-500.0,0.00029863,4]
[328730556,1717735882531,-1353.23,0.00029863,4]
[328730557,1717735882540,-500.0,0.00029863,4]
[328730558,1717735882550,-500.0,0.00029863,4]
[328730559,1717735882560,-500.0,0.00029863,4]
[328730560,1717735882569,-251.31015305,0.00029863,4]
[328730561,1717735882579,-500.0,0.00029863,4]
[328730562,1717735882589,-1353.23,0.00029863,4]
[328730563,1717735882598,-316.49008471,0.00029863,4]
[328730564,1717735882607,-1353.23,0.00029863,4]
[328730565,1717735882616,-500.0,0.00029863,4]
[328730566,1717735882625,-636.6765277,0.00029863,4]
[328730567,1717735882634,-500.0,0.00029863,4]
[328730568,1717735882643,-340.09590561,0.00029863,4]
[328730569,1717735882654,-1353.23,0.00029863,4]
[328730570,1717735882664,-500.0,0.00029863,4]
[328730571,1717735882673,-502.89,0.00029863,4]
[328730572,1717735882683,-500.0,0.00029863,4]
[328730573,1717735882692,-1353.23,0.00029863,4]
[328730574,1717735882702,-500.0,0.00029863,4]
[328730575,1717735882711,-502.89,0.00029863,4]
[328730576,1717735882720,-1353.23,0.00029863,4]
[328730577,1717735882732,-500.0,0.00029863,4]
[328730578,1717735882741,-500.0,0.00029863,4]
[328730579,1717735882750,-502.89,0.00029863,4]
[328730580,1717735882761,-1353.23,0.00029863,4]
[328730581,1717735882770,-500.0,0.00029863,4]
[328730582,1717735882779,-1218.74,0.00029863,4]
[328730583,1717735882788,-560.09055563,0.00029863,4]
[328730584,1717735882798,-502.89,0.00029863,4]
[328730585,1717735882808,-1353.23,0.00029863,4]
[328730586,1717735882818,-500.0,0.00029863,4]
[328730587,1717735882827,-1218.74,0.00029863,4]
[328730588,1717735882837,-502.89,0.00029863,4]
[328730589,1717735882846,-1353.23,0.00029863,4]
[328730590,1717735882855,-500.0,0.00029863,4]
[328730591,1717735882864,-1218.74,0.00029863,4]
[328730592,1717735882873,-502.89,0.00029863,4]
[328730593,1717735882882,-500.0,0.00029863,4]
[328730594,1717735882892,-1353.23,0.00029863,4]
[328730595,1717735882901,-502.89,0.00029863,4]
[328730596,1717735882911,-1218.74,0.00029863,4]
[328730597,1717735882920,-1353.23,0.00029863,4]
[328730598,1717735882929,-500.0,0.00029863,4]
[328730599,1717735882939,-502.89,0.00029863,4]
[328730600,1717735882948,-1353.23,0.00029863,4]
[328730601,1717735882958,-1218.74,0.00029863,4]
[328730602,1717735882967,-463.07534981,0.00029863,4]
[328730603,1717735882976,-1353.23,0.00029863,4]
[328730604,1717735882986,-1218.74,0.00029863,4]
[328730605,1717735882995,-502.89,0.00029863,4]
[328730606,1717735883005,-1353.35868207,0.00029863,4]
[328730607,1717735883016,-1218.74,0.00029863,4]
[328730608,1717735883025,-502.89,0.00029863,4]
[328730609,1717735883034,-1218.74,0.00029863,4]
[328730610,1717735883044,-500.0,0.00029863,4]
[328730611,1717735883053,-514.48748414,0.00029863,4]
[328730612,1717735883063,-502.89,0.00029863,4]
[328730613,1717735883072,-1218.74,0.00029863,4]
[328730614,1717735883081,-500.0,0.00029863,4]
[328730615,1717735883091,-502.89,0.00029863,4]
[328730616,1717735883101,-500.0,0.00029863,4]
[328730617,1717735883111,-1218.74,0.00029863,4]
[328730618,1717735883120,-500.0,0.00029863,4]
[328730619,1717735883130,-37267.72,0.00029863,4]
[328730620,1717735883140,-502.89,0.00029863,4]
[328730621,1717735883150,-500.0,0.00029863,4]
[328730622,1717735883159,-1218.74,0.00029863,4]
[328730623,1717735883169,-500.0,0.00029863,4]
[328730624,1717735883178,-37267.72,0.00029863,4]
[328730625,1717735883188,-502.89,0.00029863,4]
[328730626,1717735883197,-293.85585991,0.00029863,4]
[328730627,1717735883207,-500.0,0.00029863,4]
[328730628,1717735883217,-518.81980255,0.00029863,4]
[328730629,1717735883227,-1218.74,0.00029863,4]
[328730630,1717735883236,-500.0,0.00029863,4]
[328730631,1717735883246,-500.0,0.00029863,4]
[328730632,1717735883256,-37267.72,0.00029863,4]
[328730633,1717735883266,-1218.74,0.00029863,4]
[328730634,1717735883276,-500.0,0.00029863,4]
[328730635,1717735883285,-500.0,0.00029863,4]
[328730636,1717735883295,-502.89,0.00029863,4]
[328730637,1717735883304,-37267.72,0.00029863,4]
[328730638,1717735883314,-500.0,0.00029863,4]
[328730639,1717735883323,-502.89,0.00029863,4]
[328730640,1717735883333,-1218.74,0.00029863,4]
[328730641,1717735883342,-37267.72,0.00029863,4]
[328730642,1717735883352,-500.0,0.00029863,4]
[328730643,1717735883361,-500.0,0.00029863,4]
[328730644,1717735883371,-502.89,0.00029863,4]
[328730645,1717735883383,-529.83788715,0.00029863,4]
[328730646,1717735883393,-1218.74,0.00029863,4]
[328730647,1717735883403,-37267.72,0.00029863,4]
[328730648,1717735883412,-500.0,0.00029863,4]
[328730649,1717735883421,-500.0,0.00029863,4]
[328730650,1717735883430,-502.89,0.00029863,4]
[328730651,1717735883440,-1218.74,0.00029863,4]
[328730652,1717735883450,-37267.72,0.00029863,4]
[328730653,1717735883460,-500.0,0.00029863,4]
[328730654,1717735883470,-500.0,0.00029863,4]
[328730655,1717735883480,-1218.74,0.00029863,4]
[328730656,1717735883489,-502.89,0.00029863,4]
[328730657,1717735883499,-500.0,0.00029863,4]
[328730658,1717735883510,-37267.72,0.00029863,4]
[328730659,1717735883519,-500.0,0.00029863,4]
[328730660,1717735883529,-451.76434468,0.00029863,4]
[328730661,1717735883539,-37267.72,0.00029863,4]
[328730662,1717735883549,-1218.74,0.00029863,4]
[328730663,1717735883559,-500.0,0.00029863,4]
[328730664,1717735883569,-1218.74,0.00029863,4]
[328730665,1717735883579,-37267.72,0.00029863,4]
[328730666,1717735883588,-227.41429801,0.00029863,4]
[328730667,1717735883598,-502.89,0.00029863,4]
[328730668,1717735883608,-500.0,0.00029863,4]
[328730669,1717735883618,-1218.74,0.00029863,4]
[328730670,1717735883628,-37267.72,0.00029863,4]
[328730671,1717735883638,-530.31873669,0.00029863,4]
[328730672,1717735883648,-37267.72,0.00029863,4]
[328730673,1717735883661,-502.89,0.00029863,4]
[328730674,1717735883671,-37267.72,0.00029863,4]
[328730675,1717735883680,-1218.74,0.00029863,4]
[328730676,1717735883690,-502.89,0.00029863,4]
[328730677,1717735883700,-533.29444136,0.00029863,4]
[328730678,1717735883711,-1468.25,0.00029863,4]
[328730679,1717735883720,-37267.72,0.00029863,4]
[328730680,1717735883731,-502.89,0.00029863,4]
[328730681,1717735883743,-1468.25,0.00029863,4]
[328730682,1717735883752,-37267.72,0.00029863,4]
[328730683,1717735883764,-1218.74,0.00029863,4]
[328730684,1717735883773,-503.05539494,0.00029863,4]
[328730685,1717735883782,-37267.72,0.00029863,4]
[328730686,1717735883792,-1218.74,0.00029863,4]
[328730687,1717735883801,-37267.72,0.00029863,4]
[328730688,1717735883811,-1468.25,0.00029863,4]
[328730689,1717735883821,-1218.86,0.00029863,4]
[328730690,1717735883831,-500.0,0.00029863,4]
[328730691,1717735883841,-500.0,0.00029863,4]
[328730692,1717735883851,-37267.72,0.00029863,4]
[328730693,1717735883861,-1468.25,0.00029863,4]
[328730694,1717735883870,-506.65729811,0.00029863,4]
[328730695,1717735883880,-500.0,0.00029863,4]
[328730696,1717735883890,-500.0,0.00029863,4]
[328730697,1717735883899,-1468.25,0.00029863,4]
[328730698,1717735883909,-756.92,0.00029863,4]
[328730699,1717735883918,-500.0,0.00029863,4]
[328730700,1717735883928,-1468.25,0.00029863,4]
[328730701,1717735883938,-500.0,0.00029863,4]
[328730702,1717735883947,-37267.72,0.00029863,4]
[328730703,1717735883956,-756.92,0.00029863,4]
[328730704,1717735883966,-1468.25,0.00029863,4]
[328730705,1717735883975,-33865.18547825,0.00029863,4]
[328730706,1717735884992,-531.01667298,0.00029863,4]
[328730707,1717735885034,-2871.51784877,0.00029863,4]
[328730708,1717735885043,-756.92,0.00029863,4]
[328730709,1717735885053,-500.0,0.00029863,4]
[328730710,1717735885062,-1468.25,0.00029863,4]
[328730711,1717735885072,-455.84533172,0.00029863,4]
[328730712,1717735885088,-774.31915122,0.00029863,4]
[328730713,1717735885099,-885.31618046,0.00029863,4]
[328730714,1717735885110,-2953.2554825,0.00029863,4]
[328730715,1717735885127,-488.98222314,0.00029863,4]
[328730716,1717735885581,-308.25,0.00027436,2]
[328730717,1717735885592,-4591.85,0.00027436,2]
[328730718,1717735885602,-978.60453968,0.00029863,4]
[328730719,1717735885633,-1309.99765462,0.00029863,4]
[328730720,1717735885645,-2043.33722143,0.00029863,4]
[328730721,1717735974330,200.0,0.00017259,2]
[328730722,1717735999379,363.03414,0.00017259,2]
[328730723,1717736018773,-425.2571384,0.00017259,2]
[328730724,1717736018796,-11.70046218,0.00017259,2]
[328730829,1717737032199,-1592.4647743,0.00017159,2]
[328730830,1717737032211,-647.77,0.00017159,2]
[328730831,1717737032257,-2081.61458689,0.00017159,2]
[328730832,1717737032269,-807.2530685,0.00017159,2]
[328730833,1717737032281,-3006.76905407,0.00017159,2]
[328730834,1717737032291,-1900.83710375,0.00017258,2]
[328730835,1717737032301,-1035.01468341,0.00017259,2]
[328730836,1717737032311,-172.20421138,0.00017259,2]
[328730837,1717737032325,-404.0000001,0.00017259,2]
[328730838,1717737032343,-326.34,0.00017259,2]
[328730839,1717737032355,-420.0,0.00017259,2]
[328730840,1717737032368,-2249.63816142,0.00017259,2]
[328730841,1717737032448,-919.32000046,0.00017259,2]
[328730842,1717737032460,-630.85,0.00017259,2]
[328730843,1717737032471,-21706.36497108,0.00017259,2]
[328730844,1717737032483,-3054.54400321,0.00017259,2]
[328730845,1717737032516,-1574.09201662,0.00017259,2]
[328730846,1717737032528,-3515.07115368,0.00017259,2]
[328730847,1717737032538,-788.2912784,0.00017259,2]
[328730848,1717737032549,-278.96510323,0.00017259,2]
[328730849,1717737032560,-1000.0,0.00018,2]
[328730850,1717737032570,-1000.0,0.00019,2]
[328730851,1717737032579,-999.99,0.00019726,2]
[328730852,1717737032588,-150.99,0.00019726,2]
[328730853,1717737032598,-376.67797677,0.00019726,2]
[328730854,1717737032609,-123.31202323,0.00019726,2]
[328730855,1717737032618,-364.12731579,0.0002,2]
[328730856,1717737032629,-155.0,0.0002,2]
[328730857,1717737032638,-3820.08434065,0.0002,2]
[328730858,1717737032649,-1827.2788455,0.0002,2]
[328730859,1717737032665,-325.09234905,0.0002,2]
[328730860,1717737032676,-1548.4644648,0.0002,2]
[328730861,1717737032686,-348.52,0.0002,2]
[328730862,1717737032696,-226.6238354,0.000201,2]
[328730863,1717737032706,-175.14856952,0.00023889,2]
[328730864,1717737032715,-155.99,0.00024384,2]
[328730865,1717737032725,-346.54,0.00024384,2]
[328730866,1717737032734,-153.63,0.0002499,2]
[328730867,1717737032743,-153.63,0.0002499,2]
[328730868,1717737032752,-380.26,0.0002499,3]
[328730869,1717737032762,-215.22262414,0.00025,2]
[328730870,1717737032773,-1034.77737586,0.00025,2]
[328730871,1717737032783,-27.0128514,0.00025,2]
[328730872,1717737032794,-173.00640165,0.00025,2]
[328730874,1717737032804,-1428.219373,0.00025,2]
[328730876,1717737032816,-507468.50220325,0.00025,2]
[328730878,1717737032827,-956.33828,0.00025,2]
[328730882,1717737032853,-935.93930894,0.00025,2]
[328730884,1717737032864,-517.9614323,0.00025,2]
[328730885,1717737032875,-803.1102161,0.00025,2]
[328730886,1717737032887,-667.17312112,0.00025,2]
[328730900,1717737038522,-500.0,0.00024999,2]
[328730902,1717737038532,-500.0,0.00024999,2]
[328730904,1717737038541,-608.44133539,0.00024999,2]
[328730906,1717737038551,-355.14811038,0.00024999,2]
[328730907,1717737038562,-500.0,0.00024999,2]
[328730909,1717737038572,-500.0,0.00024999,2]
[328730911,1717737038582,-414.77601967,0.00024999,2]
[328730913,1717737038592,-500.0,0.00024999,2]
[328730915,1717737038601,-500.0,0.00024999,2]
[328730916,1717737038611,-500.0,0.00024999,2]
[328730918,1717737038621,-201.78040326,0.00024999,2]
[328730920,1717737038638,-298.21959674,0.00024999,2]
[328730922,1717737038647,-500.0,0.00024999,2]
[328730924,1717737038657,-153.56475564,0.00024999,2]
[328730926,1717737038667,-500.0,0.00024999,2]
[328730927,1717737038676,-500.0,0.00024999,2]
[328730929,1717737038686,-500.0,0.00024999,2]
[328730931,1717737038696,-500.0,0.00024999,2]
[328730932,1717737038706,-418.13561674,0.00024999,2]
[328730934,1717737038715,-268.60019452,0.00024999,2]
[328730936,1717737038727,-364.7719366,0.00024999,2]
[328730938,1717737038737,-24.74804344,0.00024999,2]
[328730942,1717737041982,-475.25195656,0.00024999,2]
[328730943,1717737041992,-500.0,0.00024999,2]
[328730944,1717737042002,-169.66304338,0.00024999,2]
[328730961,1717737043442,-347.71757747,0.00024999,2]
[328730962,1717737043452,-500.0,0.00024999,2]
[328730963,1717737043461,-500.0,0.00024999,2]
[328730964,1717737043470,-500.0,0.00024999,2]
[328730965,1717737043480,-500.0,0.00024999,2]
[328730967,1717737043489,-500.0,0.00024999,2]
[328730968,1717737043498,-262171.29726364,0.00025,2]
[328730969,1717737043973,-5002.34313556,0.00025,2]
[328731031,1717737177650,214.42,0.00025426,120]
[328731067,1717737474422,159.66962982,0.0003,120]
[328731154,1717738231635,-155.0,0.00016399,2]
[328731155,1717738231645,-386.175254,0.000164,2]
[328731156,1717738231656,-28.914746,0.00017259,2]
[328731157,1717738231668,-12767.38512206,0.00017259,2]
[328731158,1717738231682,-4849.21969045,0.00017259,2]
[328731159,1717738231694,-1072.87948852,0.00017259,2]
[328731160,1717738231708,-9696.37754878,0.00017259,2]
[328731161,1717738231737,-459.488712,0.00017259,2]
[328731162,1717738231750,-760.55939495,0.00017259,2]
[328731163,1717738231762,-3849.04995214,0.00017259,2]
[328731164,1717738231772,-173.46999674,0.0002,2]
[328731165,1717738231782,-226.6238354,0.000201,2]
[328731166,1717738231791,-409.25,0.00021823,2]
[328731167,1717738231801,-8456.49,0.00023601,2]
[328731168,1717738231811,-1452.24,0.00023703,2]
[328731169,1717738231822,-2201.98,0.00023861,2]
[328731170,1717738231832,-250.0,0.00023906,2]
[328731171,1717738231848,-250.0,0.00023906,2]
[328731172,1717738231857,-250.0,0.00023969,2]
[328731173,1717738231868,-1000.0,0.00024058,2]
[328731174,1717738231880,-409.25,0.00024087,2]
[328731175,1717738231891,-258.5060643,0.0002429,7]
[328731176,1717738231902,-211.96,0.00024331,2]
[328731177,1717738231914,-160.87,0.00024384,2]
[328731178,1717738231924,-155.46,0.00024384,2]
[328731179,1717738231933,-8659.08,0.00024585,2]
[328731180,1717738231945,-419.23220875,0.00024719,2]